[Event "Early-Titled-Tuesday-Blitz-March-19-2024"]
[Site "Chess.com"]
[Date "2024.03.19"]
[Round "5"]
[White "SlavenPastar"]
[Black "DarZay"]
[Result "0-1"]
[WhiteElo "2569"]
[BlackElo "2362"]
[TimeControl "180+1"]
[EndTime "8:58:27 PDT"]
[Termination "DarZay won by checkmate"]

1. Nf3 {[%clk 0:03:00.9]} 1... Nf6 {[%clk 0:02:59.2]} 2. g3 {[%clk 0:03:00.6]}
2... d5 {[%clk 0:02:58.5]} 3. Bg2 {[%clk 0:03:00]} 3... c5 {[%clk 0:02:58]} 4.
c4 {[%clk 0:03:00.3]} 4... e6 {[%clk 0:02:57.8]} 5. cxd5 {[%clk 0:03:00.3]} 5...
exd5 {[%clk 0:02:57.5]} 6. d4 {[%clk 0:03:01.2]} 6... Nc6 {[%clk 0:02:51.9]} 7.
O-O {[%clk 0:03:00.4]} 7... h6 {[%clk 0:02:51]} 8. Nc3 {[%clk 0:03:00.3]} 8...
Be6 {[%clk 0:02:50.1]} 9. b3 {[%clk 0:02:47.5]} 9... Be7 {[%clk 0:02:49.2]} 10.
Bb2 {[%clk 0:02:47.4]} 10... O-O {[%clk 0:02:46]} 11. Rc1 {[%clk 0:02:47]} 11...
b6 {[%clk 0:02:43]} 12. Na4 {[%clk 0:02:14.4]} 12... Nd7 {[%clk 0:02:32.7]} 13.
dxc5 {[%clk 0:01:58.5]} 13... bxc5 {[%clk 0:02:31]} 14. a3 {[%clk 0:01:33.6]}
14... Rc8 {[%clk 0:02:29]} 15. Qc2 {[%clk 0:01:11.9]} 15... d4 {[%clk 0:02:10]}
16. Rfd1 {[%clk 0:01:00.2]} 16... Rb8 {[%clk 0:02:07.5]} 17. Nd2 {[%clk
0:00:58.2]} 17... Nce5 {[%clk 0:01:58.4]} 18. h3 {[%clk 0:00:41.7]} 18... f5
{[%clk 0:01:54.8]} 19. f4 {[%clk 0:00:21]} 19... Ng6 {[%clk 0:01:52.7]} 20. Ba1
{[%clk 0:00:21.6]} 20... Rc8 {[%clk 0:01:40.5]} 21. Nb2 {[%clk 0:00:21.5]} 21...
Nb6 {[%clk 0:01:38.3]} 22. Nbc4 {[%clk 0:00:21.3]} 22... Nd5 {[%clk 0:01:36.9]}
23. Nf1 {[%clk 0:00:19.3]} 23... Bf6 {[%clk 0:01:23.8]} 24. e3 {[%clk
0:00:18.6]} 24... Qe7 {[%clk 0:01:16.6]} 25. exd4 {[%clk 0:00:18.4]} 25... cxd4
{[%clk 0:01:14.7]} 26. Bxd4 {[%clk 0:00:16.6]} 26... Bxd4+ {[%clk 0:01:12.8]}
27. Rxd4 {[%clk 0:00:17.5]} 27... Nb6 {[%clk 0:01:13.1]} 28. Qf2 {[%clk
0:00:13.7]} 28... Nxc4 {[%clk 0:01:09.4]} 29. bxc4 {[%clk 0:00:13.5]} 29... Qxa3
{[%clk 0:01:09.4]} 30. Re1 {[%clk 0:00:10]} 30... Bxc4 {[%clk 0:01:06.8]} 31.
Rd7 {[%clk 0:00:09.5]} 31... a6 {[%clk 0:01:01.1]} 32. Rd4 {[%clk 0:00:06.3]}
32... Rfd8 {[%clk 0:00:48.8]} 33. Rxd8+ {[%clk 0:00:05.9]} 33... Rxd8 {[%clk
0:00:49]} 34. h4 {[%clk 0:00:05.7]} 34... Qd6 {[%clk 0:00:45.6]} 35. Ne3 {[%clk
0:00:05.3]} 35... Bd3 {[%clk 0:00:43.8]} 36. Rd1 {[%clk 0:00:04.7]} 36... Qe6
{[%clk 0:00:25.7]} 37. Bf1 {[%clk 0:00:04.9]} 37... Qe4 {[%clk 0:00:22.6]} 38.
Qd2 {[%clk 0:00:04.3]} 38... Re8 {[%clk 0:00:12.9]} 39. Bxd3 {[%clk 0:00:02.5]}
39... Qxe3+ {[%clk 0:00:13.1]} 40. Qxe3 {[%clk 0:00:03]} 40... Rxe3 {[%clk
0:00:13.3]} 41. Bxf5 {[%clk 0:00:03.6]} 41... Ne7 {[%clk 0:00:09.6]} 42. Bh3
{[%clk 0:00:03]} 42... Rxg3+ {[%clk 0:00:09.7]} 43. Bg2 {[%clk 0:00:02.9]} 43...
Rg4 {[%clk 0:00:09.2]} 44. Rd7 {[%clk 0:00:02.2]} 44... Kf8 {[%clk 0:00:08.6]}
45. Rd8+ {[%clk 0:00:02]} 45... Kf7 {[%clk 0:00:09]} 46. h5 {[%clk 0:00:02.2]}
46... Rxf4 {[%clk 0:00:08.5]} 47. Ra8 {[%clk 0:00:02.6]} 47... Ra4 {[%clk
0:00:08]} 48. Ra7 {[%clk 0:00:02.5]} 48... Ra1+ {[%clk 0:00:07.4]} 49. Kh2
{[%clk 0:00:02.2]} 49... Kf6 {[%clk 0:00:08]} 50. Bf3 {[%clk 0:00:02.4]} 50...
a5 {[%clk 0:00:07.7]} 51. Be2 {[%clk 0:00:02.6]} 51... Ra2 {[%clk 0:00:07.4]}
52. Ra6+ {[%clk 0:00:02.7]} 52... Kg5 {[%clk 0:00:06.3]} 53. Re6 {[%clk
0:00:02.2]} 53... Nf5 {[%clk 0:00:05.5]} 54. Kg1 {[%clk 0:00:02.8]} 54... Nd4
{[%clk 0:00:05.3]} 55. Rg6+ {[%clk 0:00:02.3]} 55... Kf4 {[%clk 0:00:04.9]} 56.
Bd3 {[%clk 0:00:01.9]} 56... Rd2 {[%clk 0:00:04.2]} 57. Bf1 {[%clk 0:00:01.7]}
57... Nf3+ {[%clk 0:00:03.4]} 58. Kh1 {[%clk 0:00:01.7]} 58... Rh2# {[%clk
0:00:03.8]} 0-1

[Event "Early-Titled-Tuesday-Blitz-March-19-2024"]
[Site "Chess.com"]
[Date "2024.03.19"]
[Round "5"]
[White "Agibileg"]
[Black "GOGIEFF"]
[Result "0-1"]
[WhiteElo "2828"]
[BlackElo "3011"]
[TimeControl "180+1"]
[EndTime "8:58:29 PDT"]
[Termination "GOGIEFF won by resignation"]

1. d4 {[%clk 0:03:00.9]} 1... Nf6 {[%clk 0:02:58.7]} 2. c4 {[%clk 0:03:00.9]}
2... e6 {[%clk 0:02:59.1]} 3. Nc3 {[%clk 0:03:00.9]} 3... Bb4 {[%clk 0:02:58.4]}
4. e3 {[%clk 0:02:59.5]} 4... O-O {[%clk 0:02:57.2]} 5. Bd3 {[%clk 0:02:59]}
5... c5 {[%clk 0:02:57]} 6. Ne2 {[%clk 0:02:57.8]} 6... cxd4 {[%clk 0:02:56.3]}
7. exd4 {[%clk 0:02:57.1]} 7... d5 {[%clk 0:02:56.8]} 8. cxd5 {[%clk 0:02:57]}
8... Nxd5 {[%clk 0:02:55.1]} 9. O-O {[%clk 0:02:57.4]} 9... Nc6 {[%clk
0:02:55.2]} 10. Nxd5 {[%clk 0:02:46.2]} 10... Qxd5 {[%clk 0:02:54.1]} 11. Be3
{[%clk 0:02:45.3]} 11... Bd6 {[%clk 0:02:43.1]} 12. Nc3 {[%clk 0:02:38.3]} 12...
Qa5 {[%clk 0:02:38.2]} 13. d5 {[%clk 0:02:27.1]} 13... exd5 {[%clk 0:02:22.9]}
14. Nxd5 {[%clk 0:02:28]} 14... Be6 {[%clk 0:02:17.4]} 15. Qh5 {[%clk
0:02:27.3]} 15... h6 {[%clk 0:02:04]} 16. Be4 {[%clk 0:01:21.6]} 16... f5 {[%clk
0:01:46.9]} 17. Qg6 {[%clk 0:01:00.2]} 17... Rae8 {[%clk 0:01:28.5]} 18. Bxh6
{[%clk 0:00:59.5]} 18... Be5 {[%clk 0:01:28.8]} 19. Nf4 {[%clk 0:00:35.7]} 19...
Nd4 {[%clk 0:01:00.4]} 20. Bd3 {[%clk 0:00:24.3]} 20... Bf7 {[%clk 0:00:54.4]}
21. Qg3 {[%clk 0:00:20.6]} 21... Re6 {[%clk 0:00:28.2]} 22. Bg5 {[%clk
0:00:17.6]} 22... Rg6 {[%clk 0:00:28.7]} 23. Nxg6 {[%clk 0:00:16]} 23... Bxg3
{[%clk 0:00:28.2]} 24. Ne7+ {[%clk 0:00:16.6]} 24... Kh7 {[%clk 0:00:20.7]} 25.
fxg3 {[%clk 0:00:17.2]} 25... g6 {[%clk 0:00:21.3]} 26. Rf4 {[%clk 0:00:16.7]}
26... Ne6 {[%clk 0:00:19.7]} 27. Rh4+ {[%clk 0:00:16.4]} 27... Kg7 {[%clk
0:00:18.9]} 28. Be3 {[%clk 0:00:15.2]} 28... Rd8 {[%clk 0:00:16.5]} 29. Bc4
{[%clk 0:00:13.7]} 29... Qc7 {[%clk 0:00:16.2]} 30. Nd5 {[%clk 0:00:12.7]} 30...
Rxd5 {[%clk 0:00:13.1]} 31. Bxd5 {[%clk 0:00:13.6]} 31... Qe5 {[%clk 0:00:13.7]}
32. Bh6+ {[%clk 0:00:11.4]} 32... Kf6 {[%clk 0:00:14.1]} 33. Bxe6 {[%clk
0:00:11.1]} 33... Bxe6 {[%clk 0:00:15]} 34. Bf4 {[%clk 0:00:07.8]} 34... Qe2
{[%clk 0:00:12.7]} 35. Rf1 {[%clk 0:00:04.8]} 35... Bd5 {[%clk 0:00:12.4]} 36.
Rf2 {[%clk 0:00:05.4]} 36... Qe1+ {[%clk 0:00:12.9]} 37. Rf1 {[%clk 0:00:05.9]}
37... Qe2 {[%clk 0:00:12.8]} 38. Rf2 {[%clk 0:00:06.5]} 38... Qd1+ {[%clk
0:00:13.2]} 39. Rf1 {[%clk 0:00:06.1]} 39... Qc2 {[%clk 0:00:13.5]} 40. Rf2
{[%clk 0:00:05.3]} 40... Qb1+ {[%clk 0:00:13.8]} 41. Rf1 {[%clk 0:00:05.8]}
41... Qxb2 {[%clk 0:00:14.2]} 42. Rf2 {[%clk 0:00:06]} 42... Qb1+ {[%clk
0:00:14.6]} 43. Rf1 {[%clk 0:00:06.1]} 43... Qxa2 {[%clk 0:00:14.8]} 44. Rf2
{[%clk 0:00:06.5]} 44... Qb1+ {[%clk 0:00:14.4]} 45. Rf1 {[%clk 0:00:06.4]}
45... Qc2 {[%clk 0:00:14.6]} 46. Rf2 {[%clk 0:00:06.8]} 46... Qc5 {[%clk
0:00:14.4]} 47. Rh8 {[%clk 0:00:05.5]} 47... a5 {[%clk 0:00:14.6]} 48. h4 {[%clk
0:00:05.2]} 48... a4 {[%clk 0:00:14.9]} 49. Rh7 {[%clk 0:00:04.8]} 49... a3
{[%clk 0:00:13.7]} 50. Bg5+ {[%clk 0:00:04.9]} 50... Ke6 {[%clk 0:00:13.5]} 51.
Re7+ {[%clk 0:00:04.6]} 51... Qxe7 {[%clk 0:00:13.1]} 52. Bxe7 {[%clk
0:00:05.5]} 52... Kxe7 {[%clk 0:00:13.7]} 53. Rf1 {[%clk 0:00:03.6]} 53... b5
{[%clk 0:00:12.4]} 54. h5 {[%clk 0:00:01.5]} 54... gxh5 {[%clk 0:00:11.8]} 55.
Rd1 {[%clk 0:00:01.9]} 55... a2 {[%clk 0:00:11.7]} 56. Kf2 {[%clk 0:00:01.9]}
56... b4 {[%clk 0:00:12.1]} 57. Ke3 {[%clk 0:00:02.8]} 57... b3 {[%clk
0:00:12.7]} 58. Kd4 {[%clk 0:00:03.7]} 58... b2 {[%clk 0:00:13.1]} 59. Kxd5
{[%clk 0:00:03.4]} 59... a1=Q {[%clk 0:00:13.5]} 0-1

[Event "Early-Titled-Tuesday-Blitz-March-19-2024"]
[Site "Chess.com"]
[Date "2024.03.19"]
[Round "5"]
[White "axvesik"]
[Black "GMKrikor"]
[Result "0-1"]
[WhiteElo "2565"]
[BlackElo "2891"]
[TimeControl "180+1"]
[EndTime "8:58:29 PDT"]
[Termination "GMKrikor won by resignation"]

1. e4 {[%clk 0:03:00.9]} 1... c5 {[%clk 0:02:59.2]} 2. Nf3 {[%clk 0:03:00.3]}
2... Nc6 {[%clk 0:02:59.5]} 3. d4 {[%clk 0:03:00.8]} 3... cxd4 {[%clk
0:03:00.4]} 4. Nxd4 {[%clk 0:03:01.1]} 4... Nf6 {[%clk 0:03:01]} 5. Nc3 {[%clk
0:03:01.3]} 5... e5 {[%clk 0:03:01.7]} 6. Ndb5 {[%clk 0:03:00.9]} 6... d6 {[%clk
0:03:02.4]} 7. Bg5 {[%clk 0:02:58.1]} 7... a6 {[%clk 0:03:02.4]} 8. Na3 {[%clk
0:02:58.3]} 8... b5 {[%clk 0:03:02.7]} 9. Nd5 {[%clk 0:02:58]} 9... Be7 {[%clk
0:03:03.3]} 10. Bxf6 {[%clk 0:02:57.3]} 10... Bxf6 {[%clk 0:03:03.9]} 11. c4
{[%clk 0:02:57.6]} 11... b4 {[%clk 0:03:03.8]} 12. Nc2 {[%clk 0:02:57.6]} 12...
O-O {[%clk 0:03:04.2]} 13. Qf3 {[%clk 0:02:56.6]} 13... Bg5 {[%clk 0:03:00.8]}
14. h4 {[%clk 0:02:56.2]} 14... Bh6 {[%clk 0:03:00.6]} 15. g4 {[%clk 0:02:56.2]}
15... Bf4 {[%clk 0:02:55.9]} 16. Be2 {[%clk 0:02:53.2]} 16... Rb8 {[%clk
0:02:30.4]} 17. b3 {[%clk 0:02:40.1]} 17... Re8 {[%clk 0:02:07.8]} 18. Rd1
{[%clk 0:02:27.2]} 18... Qa5 {[%clk 0:01:36.4]} 19. Nxf4 {[%clk 0:02:06.1]}
19... exf4 {[%clk 0:01:35.6]} 20. Rxd6 {[%clk 0:01:46.4]} 20... Qxa2 {[%clk
0:00:58.8]} 21. Bd1 {[%clk 0:00:57.7]} 21... Ne5 {[%clk 0:00:54.5]} 22. Qxf4
{[%clk 0:00:57.6]} 22... Bxg4 {[%clk 0:00:54.1]} 23. Ne3 {[%clk 0:00:19.6]}
23... Bxd1 {[%clk 0:00:44]} 24. Rxd1 {[%clk 0:00:20]} 24... Qxb3 {[%clk
0:00:34.9]} 25. O-O {[%clk 0:00:19.6]} 25... Ng6 {[%clk 0:00:27.1]} 26. Qg4
{[%clk 0:00:18.3]} 26... Qc3 {[%clk 0:00:16.9]} 27. h5 {[%clk 0:00:18]} 27...
Ne5 {[%clk 0:00:16.9]} 28. Qg3 {[%clk 0:00:15.5]} 28... Rbc8 {[%clk 0:00:12.4]}
29. h6 {[%clk 0:00:15.1]} 29... g6 {[%clk 0:00:12.5]} 30. Rc1 {[%clk 0:00:10.9]}
30... Qb2 {[%clk 0:00:09.4]} 31. Nd5 {[%clk 0:00:11]} 31... Kh8 {[%clk
0:00:09.4]} 32. Rb1 {[%clk 0:00:10.1]} 32... Qd4 {[%clk 0:00:08.3]} 33. Rbd1
{[%clk 0:00:09.7]} 33... Qc5 {[%clk 0:00:08.7]} 34. Qf4 {[%clk 0:00:09.2]} 34...
Re6 {[%clk 0:00:08.5]} 35. Rd2 {[%clk 0:00:06.9]} 35... Rce8 {[%clk 0:00:08.5]}
36. Rfd1 {[%clk 0:00:06.8]} 36... Qf8 {[%clk 0:00:09.2]} 37. Nf6 {[%clk
0:00:06.7]} 37... Rc8 {[%clk 0:00:06.7]} 38. Nd7 {[%clk 0:00:04.5]} 38... Nxd7
{[%clk 0:00:04.2]} 39. Rxd7 {[%clk 0:00:05.4]} 39... g5 {[%clk 0:00:04.8]} 40.
Qf5 {[%clk 0:00:05.1]} 40... Rxh6 {[%clk 0:00:04.2]} 41. Rxf7 {[%clk 0:00:05]}
41... Qg8 {[%clk 0:00:03]} 42. Rdd7 {[%clk 0:00:05.1]} 42... Re8 {[%clk
0:00:03.1]} 43. Rf6 {[%clk 0:00:04.3]} 43... Rg6 {[%clk 0:00:02.9]} 44. Rxg6
{[%clk 0:00:04.5]} 44... Qxg6 {[%clk 0:00:03.6]} 45. Qd5 {[%clk 0:00:03.6]}
45... Qe6 {[%clk 0:00:02.6]} 46. Qd4+ {[%clk 0:00:03.9]} 46... Qe5 {[%clk
0:00:03.3]} 47. Qa7 {[%clk 0:00:03.5]} 47... Qxe4 {[%clk 0:00:02.5]} 48. Qb7
{[%clk 0:00:02.2]} 48... Qxb7 {[%clk 0:00:02.1]} 49. Rxb7 {[%clk 0:00:01.9]}
49... a5 {[%clk 0:00:02.8]} 50. Rb5 {[%clk 0:00:01.8]} 50... Ra8 {[%clk
0:00:03]} 51. c5 {[%clk 0:00:02.3]} 51... Kg7 {[%clk 0:00:03.3]} 52. c6 {[%clk
0:00:02.8]} 52... Kf6 {[%clk 0:00:03.3]} 53. c7 {[%clk 0:00:03.2]} 53... Rc8
{[%clk 0:00:03.8]} 54. Rxa5 {[%clk 0:00:03.6]} 54... Rxc7 {[%clk 0:00:04.5]} 55.
Rb5 {[%clk 0:00:04.3]} 55... Rc4 {[%clk 0:00:04.7]} 56. Kg2 {[%clk 0:00:05]}
56... h5 {[%clk 0:00:04.9]} 57. Kg3 {[%clk 0:00:05.5]} 57... h4+ {[%clk
0:00:05.1]} 58. Kf3 {[%clk 0:00:05.2]} 58... Kg6 {[%clk 0:00:05.5]} 59. Kg2
{[%clk 0:00:05.5]} 59... Kh5 {[%clk 0:00:05.4]} 60. Kh3 {[%clk 0:00:05.6]} 60...
Rc3+ {[%clk 0:00:05.1]} 61. Kg2 {[%clk 0:00:05.8]} 61... b3 {[%clk 0:00:05.7]}
62. Kh2 {[%clk 0:00:05.2]} 62... Kg4 {[%clk 0:00:05.8]} 63. Kg2 {[%clk
0:00:05.8]} 63... Kf4 {[%clk 0:00:05.2]} 64. Rb4+ {[%clk 0:00:05.7]} 64... Ke5
{[%clk 0:00:05.7]} 65. Rb5+ {[%clk 0:00:04.6]} 65... Kd4 {[%clk 0:00:06.3]} 66.
Rxg5 {[%clk 0:00:04.5]} 66... Kc4 {[%clk 0:00:06.9]} 67. Rg8 {[%clk 0:00:04.4]}
67... b2 {[%clk 0:00:06.4]} 68. Rc8+ {[%clk 0:00:05.1]} 68... Kb3 {[%clk
0:00:06.8]} 69. Rb8+ {[%clk 0:00:05.6]} 69... Kc2 {[%clk 0:00:07.4]} 0-1

[Event "Early-Titled-Tuesday-Blitz-March-19-2024"]
[Site "Chess.com"]
[Date "2024.03.19"]
[Round "5"]
[White "aljado"]
[Black "AlexandraSamaganova"]
[Result "1-0"]
[WhiteElo "2104"]
[BlackElo "2299"]
[TimeControl "180+1"]
[EndTime "8:58:32 PDT"]
[Termination "aljado won by checkmate"]

1. e4 {[%clk 0:03:00.9]} 1... c5 {[%clk 0:02:59]} 2. Nf3 {[%clk 0:03:00.5]} 2...
e6 {[%clk 0:02:58.7]} 3. d4 {[%clk 0:02:59.1]} 3... cxd4 {[%clk 0:02:53.5]} 4.
Nxd4 {[%clk 0:02:59.5]} 4... a6 {[%clk 0:02:50.5]} 5. g3 {[%clk 0:02:57.1]} 5...
Nf6 {[%clk 0:02:43.2]} 6. Bg2 {[%clk 0:02:56.6]} 6... Be7 {[%clk 0:02:42]} 7.
O-O {[%clk 0:02:55.9]} 7... d6 {[%clk 0:02:42.4]} 8. Nc3 {[%clk 0:02:52.7]} 8...
O-O {[%clk 0:02:41.9]} 9. Be3 {[%clk 0:02:51.6]} 9... Nbd7 {[%clk 0:02:34.5]}
10. Qe2 {[%clk 0:02:48]} 10... Rb8 {[%clk 0:02:31.6]} 11. Rad1 {[%clk
0:02:42.2]} 11... Qc7 {[%clk 0:02:20.8]} 12. Kh1 {[%clk 0:02:37.3]} 12... b5
{[%clk 0:02:19.2]} 13. a3 {[%clk 0:02:31.9]} 13... Bb7 {[%clk 0:02:18.1]} 14. f4
{[%clk 0:02:30]} 14... Rfe8 {[%clk 0:02:00.8]} 15. h3 {[%clk 0:02:25.3]} 15...
Nb6 {[%clk 0:01:45.2]} 16. g4 {[%clk 0:02:19.7]} 16... Nc4 {[%clk 0:01:40.2]}
17. Bc1 {[%clk 0:02:19.4]} 17... g6 {[%clk 0:01:23]} 18. Nf3 {[%clk 0:01:58.8]}
18... Bc6 {[%clk 0:00:50.1]} 19. Ng5 {[%clk 0:01:45]} 19... Qb7 {[%clk
0:00:44.9]} 20. f5 {[%clk 0:01:19]} 20... exf5 {[%clk 0:00:32.8]} 21. gxf5
{[%clk 0:01:18.6]} 21... Bf8 {[%clk 0:00:22.2]} 22. fxg6 {[%clk 0:01:16.1]}
22... fxg6 {[%clk 0:00:06.4]} 23. Rxf6 {[%clk 0:01:11.2]} 23... Bg7 {[%clk
0:00:06.7]} 24. Rf7 {[%clk 0:01:08.6]} 24... Re7 {[%clk 0:00:04.6]} 25. Rxe7
{[%clk 0:01:07.3]} 25... Qxe7 {[%clk 0:00:05.5]} 26. Nd5 {[%clk 0:00:42.2]}
26... Qe8 {[%clk 0:00:03.8]} 27. Qg4 {[%clk 0:00:32.9]} 27... Ne5 {[%clk
0:00:03.4]} 28. Qe6+ {[%clk 0:00:30.4]} 28... Qxe6 {[%clk 0:00:02.7]} 29. Nxe6
{[%clk 0:00:30.8]} 29... Kf7 {[%clk 0:00:02]} 30. Nxg7 {[%clk 0:00:30]} 30...
Kxg7 {[%clk 0:00:02.9]} 31. Kg1 {[%clk 0:00:23.4]} 31... Re8 {[%clk 0:00:02.8]}
32. b3 {[%clk 0:00:20.6]} 32... a5 {[%clk 0:00:02.7]} 33. Bb2 {[%clk 0:00:20.6]}
33... a4 {[%clk 0:00:03.1]} 34. Bxe5+ {[%clk 0:00:20.3]} 34... dxe5 {[%clk
0:00:04]} 35. bxa4 {[%clk 0:00:20.1]} 35... bxa4 {[%clk 0:00:04.9]} 36. Kf2
{[%clk 0:00:18.4]} 36... Rb8 {[%clk 0:00:04.9]} 37. Ke3 {[%clk 0:00:17.5]} 37...
Rb2 {[%clk 0:00:04.9]} 38. Rd2 {[%clk 0:00:17.3]} 38... Ra2 {[%clk 0:00:04.7]}
39. Nb4 {[%clk 0:00:16.9]} 39... Rxa3+ {[%clk 0:00:04]} 40. Rd3 {[%clk
0:00:15.5]} 40... Ra1 {[%clk 0:00:03]} 41. Nxc6 {[%clk 0:00:14.3]} 41... Rg1
{[%clk 0:00:03.9]} 42. Bf3 {[%clk 0:00:12.9]} 42... Rc1 {[%clk 0:00:04.3]} 43.
Ra3 {[%clk 0:00:11.5]} 43... Kh6 {[%clk 0:00:04.4]} 44. Rxa4 {[%clk 0:00:11.1]}
44... Rxc2 {[%clk 0:00:05]} 45. Nxe5 {[%clk 0:00:09.6]} 45... Rc3+ {[%clk
0:00:05.5]} 46. Nd3 {[%clk 0:00:09.2]} 46... Rb3 {[%clk 0:00:05.4]} 47. e5
{[%clk 0:00:09.2]} 47... Kg7 {[%clk 0:00:05.5]} 48. Ra7+ {[%clk 0:00:07.7]}
48... Kf8 {[%clk 0:00:05.7]} 49. e6 {[%clk 0:00:07.2]} 49... Rb6 {[%clk
0:00:04.8]} 50. Bd5 {[%clk 0:00:06.3]} 50... Rd6 {[%clk 0:00:04.4]} 51. Kd4
{[%clk 0:00:06.6]} 51... g5 {[%clk 0:00:04.4]} 52. Ne5 {[%clk 0:00:06.8]} 52...
Rb6 {[%clk 0:00:04.2]} 53. Ra8+ {[%clk 0:00:06]} 53... Ke7 {[%clk 0:00:04.1]}
54. Ra7+ {[%clk 0:00:05]} 54... Kf6 {[%clk 0:00:04]} 55. Nd7+ {[%clk 0:00:04.6]}
55... Kg6 {[%clk 0:00:03.9]} 56. Nxb6 {[%clk 0:00:05.4]} 56... h5 {[%clk
0:00:04.2]} 57. e7 {[%clk 0:00:05.6]} 57... Kf5 {[%clk 0:00:04.1]} 58. e8=Q
{[%clk 0:00:05.6]} 58... g4 {[%clk 0:00:05]} 59. Qe4+ {[%clk 0:00:04.9]} 59...
Kg5 {[%clk 0:00:04.3]} 60. Rg7+ {[%clk 0:00:05]} 60... Kh4 {[%clk 0:00:05.2]}
61. Qf4 {[%clk 0:00:04.3]} 61... Kxh3 {[%clk 0:00:05.1]} 62. Rg5 {[%clk
0:00:04]} 62... h4 {[%clk 0:00:03.8]} 63. Qxg4+ {[%clk 0:00:02.8]} 63... Kh2
{[%clk 0:00:04.7]} 64. Qxh4# {[%clk 0:00:02.6]} 1-0

[Event "Early-Titled-Tuesday-Blitz-March-19-2024"]
[Site "Chess.com"]
[Date "2024.03.19"]
[Round "5"]
[White "ural58"]
[Black "AsselLesbekova"]
[Result "0-1"]
[WhiteElo "2469"]
[BlackElo "2307"]
[TimeControl "180+1"]
[EndTime "8:58:35 PDT"]
[Termination "AsselLesbekova won on time"]

1. e4 {[%clk 0:03:00.9]} 1... e5 {[%clk 0:02:59.1]} 2. f4 {[%clk 0:03:00]} 2...
Nf6 {[%clk 0:02:59.7]} 3. Nf3 {[%clk 0:02:55.4]} 3... Nxe4 {[%clk 0:02:58.2]} 4.
d3 {[%clk 0:02:55]} 4... Nc5 {[%clk 0:02:56]} 5. fxe5 {[%clk 0:02:54.6]} 5... d6
{[%clk 0:02:55.2]} 6. d4 {[%clk 0:02:49.8]} 6... Ne4 {[%clk 0:02:51.6]} 7. Bd3
{[%clk 0:02:49]} 7... d5 {[%clk 0:02:51.3]} 8. O-O {[%clk 0:02:41.4]} 8... Nc6
{[%clk 0:02:51.7]} 9. c4 {[%clk 0:02:39.5]} 9... Be6 {[%clk 0:02:49.6]} 10. Nc3
{[%clk 0:02:18.9]} 10... Nxc3 {[%clk 0:02:47.2]} 11. bxc3 {[%clk 0:02:16.9]}
11... dxc4 {[%clk 0:02:47.3]} 12. Be4 {[%clk 0:02:14.6]} 12... Bd5 {[%clk
0:02:46.4]} 13. Bxd5 {[%clk 0:02:11.8]} 13... Qxd5 {[%clk 0:02:47.3]} 14. Ng5
{[%clk 0:02:11.7]} 14... Nd8 {[%clk 0:02:27.2]} 15. Qh5 {[%clk 0:01:56.5]} 15...
g6 {[%clk 0:02:25.6]} 16. Qh3 {[%clk 0:01:50.1]} 16... Be7 {[%clk 0:02:20.5]}
17. Rb1 {[%clk 0:01:48.5]} 17... h6 {[%clk 0:01:57.2]} 18. Rb2 {[%clk
0:01:09.4]} 18... Qd7 {[%clk 0:01:30.2]} 19. Qxd7+ {[%clk 0:01:05.3]} 19... Kxd7
{[%clk 0:01:31.1]} 20. Nxf7 {[%clk 0:01:02]} 20... Nxf7 {[%clk 0:01:26.2]} 21.
Rxf7 {[%clk 0:01:00.8]} 21... Ke6 {[%clk 0:01:26.2]} 22. Rg7 {[%clk 0:00:42.4]}
22... b6 {[%clk 0:01:20.9]} 23. Rxg6+ {[%clk 0:00:41]} 23... Kd5 {[%clk
0:01:14.9]} 24. Rb5+ {[%clk 0:00:37.5]} 24... Ke4 {[%clk 0:01:10.7]} 25. Rg3
{[%clk 0:00:28.6]} 25... c6 {[%clk 0:01:02]} 26. Re3+ {[%clk 0:00:25.5]} 26...
Kf5 {[%clk 0:00:59.9]} 27. Rb2 {[%clk 0:00:26.3]} 27... Ke6 {[%clk 0:00:57.9]}
28. Rg3 {[%clk 0:00:20.2]} 28... Rhg8 {[%clk 0:00:56.2]} 29. Rxg8 {[%clk
0:00:18.8]} 29... Rxg8 {[%clk 0:00:57.1]} 30. Bxh6 {[%clk 0:00:18.9]} 30... c5
{[%clk 0:00:57.1]} 31. Be3 {[%clk 0:00:17.5]} 31... Kd5 {[%clk 0:00:43.6]} 32.
dxc5 {[%clk 0:00:17.4]} 32... Bxc5 {[%clk 0:00:41.4]} 33. Bxc5 {[%clk
0:00:17.3]} 33... bxc5 {[%clk 0:00:35.8]} 34. Re2 {[%clk 0:00:18.2]} 34... Ke6
{[%clk 0:00:35.7]} 35. g3 {[%clk 0:00:15.8]} 35... Rd8 {[%clk 0:00:35.5]} 36.
Re3 {[%clk 0:00:13.4]} 36... Rd1+ {[%clk 0:00:35.8]} 37. Kg2 {[%clk 0:00:13.4]}
37... Rd2+ {[%clk 0:00:36.2]} 38. Kh3 {[%clk 0:00:12.9]} 38... Rxa2 {[%clk
0:00:36.6]} 39. g4 {[%clk 0:00:13.8]} 39... a5 {[%clk 0:00:34.2]} 40. Kg3 {[%clk
0:00:13.9]} 40... a4 {[%clk 0:00:33.7]} 41. h4 {[%clk 0:00:14.8]} 41... a3
{[%clk 0:00:29.3]} 42. Kf4 {[%clk 0:00:14.5]} 42... Rb2 {[%clk 0:00:21.8]} 43.
Re1 {[%clk 0:00:13.9]} 43... Rc2 {[%clk 0:00:17.8]} 44. Ra1 {[%clk 0:00:13.4]}
44... Rxc3 {[%clk 0:00:17.9]} 45. h5 {[%clk 0:00:13.6]} 45... Rh3 {[%clk
0:00:15.6]} 46. Kg5 {[%clk 0:00:12.8]} 46... Kxe5 {[%clk 0:00:15.1]} 47. Kg6
{[%clk 0:00:12.5]} 47... Kd4 {[%clk 0:00:11.7]} 48. g5 {[%clk 0:00:12.8]} 48...
c3 {[%clk 0:00:09.1]} 49. h6 {[%clk 0:00:13.7]} 49... c2 {[%clk 0:00:09]} 50.
Kh7 {[%clk 0:00:14]} 50... a2 {[%clk 0:00:05.9]} 51. g6 {[%clk 0:00:12]} 51...
Kc3 {[%clk 0:00:05.4]} 52. g7 {[%clk 0:00:12.2]} 52... Rg3 {[%clk 0:00:05.8]}
53. g8=Q {[%clk 0:00:12.4]} 53... Rxg8 {[%clk 0:00:06.7]} 54. Kxg8 {[%clk
0:00:12.8]} 54... Kb2 {[%clk 0:00:07.2]} 55. h7 {[%clk 0:00:13.7]} 55... Kxa1
{[%clk 0:00:07.2]} 56. h8=Q+ {[%clk 0:00:14.6]} 56... Kb1 {[%clk 0:00:07.8]} 57.
Qc3 {[%clk 0:00:12.6]} 57... c1=Q {[%clk 0:00:06.7]} 58. Qb3+ {[%clk 0:00:12.5]}
58... Qb2 {[%clk 0:00:06.9]} 59. Qd1+ {[%clk 0:00:12.6]} 59... Qc1 {[%clk
0:00:06.7]} 60. Qb3+ {[%clk 0:00:12.9]} 60... Ka1 {[%clk 0:00:07.1]} 0-1